bitfinex-derivatives/quotes_SOLF0:USTF0_20250731
["timestamp","ask_amount","ask_price","bid_price","bid_amount"]
[1753989638053,5.662,176.63,176.61,3.24]
[1753989638352,3.21,176.69,176.62,3.24]
[1753989638557,3.21,176.69,176.63,6.60451547]
[1753989639156,3.21,176.69,176.63,9.84451547]
[1753989639461,107.14,176.73,176.64,3.24]
[1753989639462,8.8711,176.66,176.64,3.24]
[1753989639965,3.21,176.66,176.64,3.24]
[1753989641062,3.21,176.71,176.63,6.60451547]
[1753989642059,3.21,176.71,176.63,9.84451547]
[1753989642653,5.6614,176.65,176.63,9.84451547]
[1753989643262,5.6611,176.66,176.64,3.24]
[1753989643464,8.8711,176.66,176.64,3.24]
[1753989643660,5.6605,176.68,176.66,3.24]
[1753989643864,3.21,176.72,176.69,3.24]
[1753989644166,380.46,176.75,176.68,3.24]
[1753989644353,8.8699,176.7,176.68,3.24]
[1753989644560,3.21,176.73,176.7,3.24]
[1753989644865,5.6591,176.72,176.7,3.24]
[1753989645055,3.21,176.73,176.69,6.60451547]
[1753989645257,5.66,176.7,176.67,9.84451547]
[1753989645458,8.87,176.7,176.68,3.24]
[1753989645657,3.21,176.78,176.69,3.24]
[1753989645853,3.21,176.78,176.69,9.84451547]
[1753989646054,5.6594,176.71,176.69,6.60451547]
[1753989646265,3.21,176.79,176.7,3.24]
[1753989646470,3.21,176.79,176.66,6.60451547]
[1753989646471,3.21,176.79,176.73,6.60451547]
[1753989646761,5.6584,176.74,176.73,9.84451547]
[1753989646962,8.8684,176.74,176.73,6.60451547]
[1753989647260,5.6584,176.74,176.73,9.84451547]
[1753989647468,8.8684,176.74,176.73,6.60451547]
[1753989648158,8.8684,176.74,176.71,9.84451547]
[1753989648356,5.6584,176.74,176.73,3.24]
[1753989648556,3.21,176.78,176.75,3.24]
[1753989648762,3.21,176.81,176.76,9.84451547]
[1753989649256,3.21,176.83,176.74,9.84451547]
[1753989649463,3.21,176.83,176.74,6.60451547]
[1753989649757,3.21,176.79,176.76,9.84451547]
[1753989649956,3.21,176.83,176.75,6.60451547]
[1753989650161,8.8673,176.78,176.76,3.24]
[1753989650359,5.6573,176.78,176.75,6.60451547]
[1753989650665,5.6573,176.78,176.77,3.24]
[1753989650963,8.8669,176.79,176.77,3.24]
[1753989651665,5.6571,176.78,176.77,3.24]
[1753989651864,3.21,176.78,176.76,3.24]
[1753989652058,3.21,176.78,176.75,6.60451547]
[1753989652264,8.8673,176.78,176.76,3.24]
[1753989653166,8.8673,176.78,176.75,6.60451547]
[1753989653371,5.6569,176.79,176.77,9.84451547]
[1753989653666,5.6569,176.79,176.78,3.24]
[1753989654069,3.21,176.8,176.78,3.24]
[1753989654565,3.21,176.86,176.8,3.24]
[1753989654762,3.21,176.86,176.83,6.60451547]
[1753989655064,3.21,176.91,176.83,9.84451547]
[1753989655262,3.21,176.92,176.83,9.84451547]
[1753989655462,3.21,176.92,176.85,6.60451547]
[1753989656157,5.6545,176.87,176.85,6.60451547]
[1753989656468,3.21,176.87,176.85,9.84451547]
[1753989656963,5.6548,176.86,176.84,6.60451547]
[1753989657170,5.6548,176.86,176.84,9.84451547]
[1753989657569,8.8648,176.86,176.84,9.84451547]
[1753989658172,3.21,176.86,176.85,3.25]
[1753989658368,5.6542,176.87,176.85,3.25]
[1753989658673,5.6542,176.87,176.86,9.85451547]
[1753989659068,3.16,176.89,176.84,6.60451547]
[1753989659368,3.16,176.89,176.83,3.25]
[1753989659565,3.16,176.89,176.84,6.60451547]
[1753989659970,3.16,176.88,176.85,3.25]
[1753989660171,5.6546,176.86,176.85,3.25]
[1753989660574,3.16,176.9,176.81,6.60451547]
[1753989660968,3.16,176.88,176.79,6.60451547]
[1753989661169,3.16,176.86,176.78,3.25]
[1753989662071,3.16,176.86,176.79,6.60451547]
[1753989662379,3.16,176.83,176.75,3.25]
[1753989662570,6.60451547,176.8,176.71,6.60451547]
[1753989662774,3.16,176.79,176.71,15.51361547]
[1753989662967,3.16,176.79,176.72,3.25]
[1753989663174,5.6575,176.77,176.71,6.60451547]
[1753989663477,3.16,176.76,176.74,3.25]
[1753989663776,8.8182,176.75,176.74,3.25]
[1753989664176,3.16,176.75,176.7,6.60451547]
[1753989664371,6.60451547,176.8,176.72,3.25]
[1753989664679,3.16,176.74,176.72,3.25]
[1753989664880,6.60451547,176.81,176.73,3.25]
[1753989665172,3.16,176.8,176.71,3.25]
[1753989665378,6.60451547,176.79,176.7,6.60451547]
[1753989665575,3.16,176.71,176.68,9.85451547]
[1753989665771,3.16,176.71,176.69,3.25]
[1753989665976,11.3108,176.84,176.67,3.25]
[1753989665977,3.16,176.69,176.67,3.25]
[1753989666676,3.16,176.72,176.55,6.60451547]
[1753989666880,3.16,176.7,176.61,3.25]
[1753989667176,3.16,176.64,176.62,3.25]
[1753989667676,6.60451547,176.65,176.56,6.60451547]
[1753989667875,3.16,176.62,176.54,9.85451547]
[1753989668270,5.6631,176.6,176.54,15.51911547]
[1753989668477,8.8231,176.6,176.54,15.51911547]
[1753989668773,5.6641,176.57,176.51,12.27021547]
[1753989669080,3.16,176.6,176.52,3.25]
[1753989669481,3.16,176.61,176.52,3.25]
[1753989670982,3.16,176.59,176.52,3.25]
[1753989671175,8.8238,176.58,176.52,8.9152]
[1753989671676,8.8238,176.58,176.52,5.6652]
[1753989671876,8.8239,176.57,176.54,3.25]
[1753989672179,3.16,176.56,176.54,3.25]
[1753989672381,5.6633,176.59,176.52,3.25]
[1753989672582,6.60451547,176.62,176.53,6.60451547]
[1753989672782,3.16,176.61,176.54,3.25]
[1753989673376,3.16,176.61,176.52,3.25]
[1753989673778,5.6635,176.59,176.54,5.6648]
[1753989673980,3.16,176.57,176.55,3.25]
[1753989674280,3.16,176.58,176.55,3.25]
[1753989674481,3.16,176.61,176.52,3.25]
[1753989675079,3.16,176.59,176.52,3.25]
[1753989675383,3.16,176.59,176.5,3.25]
[1753989675883,3.16,176.59,176.5,8.916]
[1753989676383,3.16,176.55,176.53,3.25]
[1753989677878,8.8238,176.58,176.54,8.9148]
[1753989678087,3.16,176.58,176.56,3.25]
[1753989678285,3.16,176.6,176.55,6.60451547]
[1753989678481,3.16,176.63,176.55,9.85451547]
[1753989678787,3.16,176.63,176.56,3.25]
[1753989679579,6.60451547,176.6,176.52,3.25]
[1753989679787,3.16,176.59,176.52,3.25]
[1753989680481,3.16,176.59,176.53,6.60451547]
[1753989680679,3.16,176.59,176.56,3.25]
[1753989680880,3.16,176.59,176.57,3.25]
[1753989681085,3.16,176.59,176.58,3.25]
[1753989681285,3.16,176.57,176.55,3.25]
[1753989681588,6.60451547,176.66,176.56,3.25]
[1753989681885,3.16,176.61,176.53,3.25]
[1753989682080,3.16,176.61,176.54,6.60451547]
[1753989682384,3.16,176.61,176.58,3.25]
[1753989682785,8.8229,176.6,176.58,3.25]
[1753989682986,3.16,176.6,176.48,3.25]
[1753989683187,3.16,176.6,176.53,3.25]
[1753989683886,3.16,176.58,176.54,3.25]
[1753989684082,3.16,176.58,176.53,5.6651]
[1753989684277,3.16,176.57,176.52,12.26981547]
[1753989684481,3.16,176.57,176.55,3.25]
[1753989685186,8.8239,176.57,176.55,3.25]
[1753989685386,3.16,176.56,176.55,3.25]
[1753989685584,3.16,176.56,176.53,3.25]
[1753989685787,3.16,176.62,176.52,6.60451547]
[1753989686091,3.16,176.62,176.52,9.85451547]
[1753989686387,8.8239,176.57,176.54,3.25]
[1753989686586,6.60451547,176.63,176.52,6.60451547]
[1753989686784,5.6647,176.55,176.51,3.25]
[1753989686976,3.16,176.54,176.52,3.25]
[1753989687888,8.8249,176.54,176.52,3.25]
[1753989688795,3.15,176.58,176.5,3.06]
[1753989689089,3.15,176.54,176.47,3.06]
[1753989689291,3.15,176.54,176.46,9.66451547]
[1753989689491,3.15,176.48,176.45,3.06]
[1753989689686,3.15,176.5,176.46,3.06]
[1753989689992,3.15,176.49,176.47,3.06]
[1753989690691,8.8165,176.49,176.47,3.06]
[1753989691393,5.6667,176.48,176.47,3.06]
[1753989691590,8.8167,176.48,176.44,6.60451547]
[1753989691893,8.8167,176.48,176.46,3.06]
[1753989692290,5.6665,176.49,176.47,3.06]
[1753989692489,3.15,176.57,176.49,3.06]
[1753989692787,3.15,176.49,176.36,3.06]
[1753989692998,3.15,176.49,176.42,3.06]
[1753989693190,3.15,176.48,176.39,6.60451547]
[1753989693394,6.60451547,176.55,176.35,84.62667992]
[1753989693395,3.15,176.46,176.37,9.66451547]
[1753989693689,3.15,176.43,176.34,3.06]
[1753989693894,3.15,176.43,176.35,6.60451547]
[1753989694091,3.15,176.43,176.36,3.06]
[1753989694291,5.6695,176.4,176.35,6.60451547]
[1753989694597,3.15,176.39,176.37,3.06]
[1753989695993,3.15,176.43,176.35,9.66451547]
[1753989696189,5.6693,176.4,176.35,15.33521547]
[1753989696393,3.15,176.39,176.36,3.06]
[1753989696790,3.15,176.38,176.36,3.06]
[1753989696996,3.15,176.38,176.36,8.7305]
[1753989697194,3.15,176.38,176.36,3.06]
[1753989698899,3.15,176.37,176.34,5.6712]
[1753989699088,3.15,176.37,176.35,3.06]
[1753989699286,6.60451547,176.44,176.34,6.60451547]
[1753989699496,3.15,176.38,176.36,3.06]
[1753989699698,3.15,176.43,176.32,390.40451547]
[1753989699894,3.15,176.41,176.32,9.66451547]
[1753989700294,3.15,176.36,176.33,3.06]
[1753989700499,6.60451547,176.42,176.34,3.06]
[1753989700696,3.15,176.41,176.34,3.06]
[1753989700899,3.15,176.36,176.34,3.06]
[1753989701498,3.15,176.35,176.32,3.06]
[1753989701695,3.15,176.35,176.31,6.60451547]
[1753989701896,3.15,176.35,176.33,3.06]
[1753989702896,3.15,176.41,176.33,6.60451547]
[1753989703098,5.6699,176.39,176.34,8.7312]
[1753989703298,3.15,176.38,176.35,3.06]
[1753989703494,6.60451547,176.46,176.35,6.60451547]
[1753989703700,3.15,176.39,176.37,3.06]
[1753989704203,3.15,176.38,176.35,6.60451547]
[1753989704495,3.15,176.38,176.36,3.06]
[1753989704700,3.15,176.38,176.35,6.60451547]
[1753989704701,3.15,176.45,176.37,3.06]
[1753989705291,3.15,176.39,176.37,3.06]
[1753989705899,8.8189,176.42,176.38,3.06]
[1753989706099,8.8189,176.42,176.39,6.60451547]
[1753989706299,3.15,176.42,176.4,3.06]
[1753989706493,3.15,176.41,176.4,3.06]
[1753989706692,3.15,176.41,176.38,6.60451547]
[1753989706896,3.15,176.41,176.39,3.06]
[1753989707101,5.6689,176.42,176.39,3.06]
[1753989707297,6.60451547,176.48,176.38,6.60451547]
[1753989707298,3.15,176.4,176.38,6.60451547]
[1753989707497,3.15,176.4,176.38,9.66451547]
[1753989708799,6.60451547,176.42,176.32,9.66451547]
[1753989708999,6.60451547,176.4,176.3,3.06]
[1753989709302,3.15,176.39,176.31,6.60451547]
[1753989710797,3.15,176.39,176.32,3.06]
[1753989711295,8.8205,176.37,176.34,3.06]
[1753989711498,3.15,176.37,176.35,3.06]
[1753989711896,8.8205,176.37,176.35,3.06]
[1753989712293,3.15,176.44,176.36,3.06]
[1753989712496,3.15,176.44,176.37,6.60451547]
[1753989712702,3.15,176.44,176.37,9.66451547]
[1753989712899,3.15,176.46,176.39,6.60451547]
[1753989713501,3.15,176.46,176.41,9.66451547]
[1753989713903,3.15,176.46,176.41,6.60451547]
[1753989714606,8.8185,176.43,176.41,9.66451547]
[1753989714900,3.15,176.43,176.42,3.06]
[1753989715098,3.15,176.44,176.42,3.06]
[1753989715304,5.6683,176.43,176.42,3.06]
[1753989715509,3.15,176.43,176.41,6.60451547]
[1753989715709,3.15,176.4,176.39,6.60451547]
[1753989715897,3.15,176.49,176.39,9.66451547]
[1753989716296,5.6692,176.41,176.39,9.66451547]
[1753989716503,3.15,176.4,176.39,9.66451547]
[1753989717107,3.15,176.41,176.39,9.66451547]
[1753989717410,17.93751547,176.49,176.39,6.60451547]
[1753989717707,3.15,176.48,176.41,6.60451547]
[1753989718106,5.6685,176.43,176.41,6.60451547]
[1753989718307,11.333,176.49,176.41,9.61451547]
[1753989718510,3.3,176.42,176.41,9.61451547]
[1753989718801,3.3,176.5,176.41,6.60451547]
[1753989719006,3.3,176.5,176.43,6.60451547]
[1753989719201,3.3,176.5,176.43,9.61451547]
[1753989719402,3.3,176.5,176.45,6.60451547]
[1753989719603,3.3,176.5,176.45,9.61451547]
[1753989719808,5.6672,176.47,176.45,9.61451547]
[1753989720004,8.9672,176.47,176.45,9.61451547]
[1753989720314,3.3,176.46,176.45,9.61451547]
[1753989720603,3.3,176.53,176.46,3.01]
[1753989720807,107.1,176.56,176.49,6.60451547]
[1753989721003,3.3,176.55,176.49,6.60451547]
[1753989721411,3.3,176.55,176.42,3.01]
[1753989721712,3.3,176.54,176.45,6.60451547]
[1753989722015,5.6686,176.43,176.4,6.60451547]
[1753989722306,6.60451547,176.51,176.4,9.61451547]
[1753989722513,3.3,176.48,176.38,9.61451547]
[1753989722707,3.3,176.41,176.38,9.61451547]
[1753989723009,3.3,176.4,176.38,9.61451547]
[1753989723213,8.9694,176.4,176.38,9.61451547]
[1753989723399,6.60451547,176.47,176.28,107.06]
[1753989723599,6.60451547,176.45,176.34,6.60451547]
[1753989723812,5.6706,176.36,176.34,9.61451547]
[1753989724312,3.3,176.42,176.32,6.60451547]
[1753989724811,3.3,176.41,176.33,3.01]
[1753989725011,3.3,176.41,176.38,6.60451547]
[1753989725204,11.3341,176.48,176.38,6.60451547]
[1753989725205,3.3,176.48,176.38,9.61451547]
[1753989725505,3.3,176.48,176.4,6.60451547]
[1753989725709,3.3,176.48,176.41,3.01]
[1753989725911,5.6682,176.44,176.42,3.01]
[1753989726112,3.3,176.51,176.42,9.61451547]
[1753989726506,5.6676,176.46,176.43,3.01]
[1753989726704,3.3,176.51,176.44,9.61451547]
[1753989727012,5.6676,176.46,176.45,3.01]
[1753989727414,5.6671,176.47,176.45,3.01]
[1753989727609,107.06,176.52,176.47,3.01]
[1753989727814,3.3,176.51,176.48,3.01]
[1753989728022,381.1,176.57,176.49,6.60451547]
[1753989728312,3.3,176.56,176.49,6.60451547]
[1753989728711,3.3,176.56,176.48,3.01]
[1753989729115,8.9663,176.5,176.48,3.01]
[1753989730108,6.60451547,176.55,176.45,6.60451547]
[1753989730308,3.3,176.52,176.43,3.01]
[1753989730532,3.3,176.52,176.43,9.61451547]
[1753989730712,6.60451547,176.49,176.39,3.01]
[1753989730913,3.3,176.46,176.36,9.61451547]
[1753989731107,5.6696,176.4,176.36,9.61451547]
[1753989731308,8.9696,176.4,176.37,3.01]
[1753989731515,3.3,176.4,176.37,3.01]
[1753989732013,3.3,176.39,176.36,6.60451547]
[1753989732208,3.3,176.39,176.36,9.61451547]
[1753989732516,3.3,176.39,176.36,6.60451547]
[1753989732817,6.60451547,176.47,176.37,3.01]
[1753989733008,3.3,176.46,176.37,3.01]
[1753989733406,6.60451547,176.47,176.37,3.01]
[1753989733614,3.3,176.46,176.37,3.01]
[1753989734013,3.3,176.42,176.37,3.01]
[1753989734314,3.3,176.42,176.36,6.60451547]
[1753989734504,5.669,176.41,176.37,5.6702]
[1753989734708,3.3,176.42,176.4,3.01]
[1753989734910,3.3,176.48,176.4,6.60451547]
[1753989735115,5.669,176.41,176.4,9.61451547]
[1753989735516,5.6689,176.42,176.41,3.01]
[1753989736213,5.669,176.41,176.4,6.60451547]
[1753989736414,6.60451547,176.49,176.4,6.60451547]
[1753989736415,3.3,176.46,176.4,9.61451547]
[1753989737216,5.6689,176.42,176.4,9.61451547]
[1753989737412,3.3,176.48,176.4,3.01]
[1753989737619,5.6693,176.41,176.38,9.61451547]
[1753989737918,3.3,176.41,176.39,3.01]
[1753989738318,8.9691,176.41,176.39,3.01]
[1753989738820,3.3,176.46,176.36,9.61451547]
[1753989739115,3.3,176.39,176.36,9.61451547]
[1753989739814,6.60451547,176.45,176.36,9.61451547]
[1753989739815,3.3,176.38,176.36,9.61451547]
[1753989741018,8.97,176.38,176.36,9.61451547]
[1753989741219,3.3,176.4,176.37,3.01]
[1753989741519,5.6697,176.39,176.38,3.01]
[1753989741719,3.3,176.43,176.4,3.01]
[1753989741919,3.3,176.43,176.41,3.01]
[1753989742319,3.3,176.45,176.42,3.01]
[1753989742519,5.6687,176.42,176.41,3.01]
[1753989742714,3.3,176.43,176.41,3.01]
[1753989742908,17.93721547,176.5,176.41,3.01]
[1753989743119,3.3,176.42,176.4,9.61451547]
[1753989743415,3.3,176.45,176.38,6.60451547]
[1753989743615,3.3,176.45,176.4,9.61451547]
[1753989743816,3.3,176.48,176.4,9.61451547]
[1753989744311,5.6687,176.42,176.4,9.61451547]
[1753989744620,5.6687,176.42,176.41,3.01]
[1753989744817,5.6684,176.43,176.41,3.01]
[1753989745218,8.9684,176.43,176.41,3.01]
[1753989745416,3.3,176.5,176.4,6.60451547]
[1753989745815,5.6687,176.42,176.4,6.60451547]
[1753989746022,3.3,176.5,176.4,9.61451547]
[1753989747125,4.65459082,176.53,176.42,3.01]
[1753989747126,8.9681,176.44,176.42,3.01]
[1753989747324,6.60451547,176.51,176.42,3.01]
[1753989747525,5.6689,176.42,176.4,9.61451547]
[1753989747725,3.3,176.5,176.4,9.61451547]
[1753989748126,5.669,176.41,176.4,9.61451547]
[1753989748421,3.03,176.41,176.4,9.61451547]
[1753989750029,8.699,176.41,176.4,9.61451547]
[1753989750228,3.03,176.41,176.4,9.61451547]
[1753989750524,5.6685,176.43,176.41,2.99]
[1753989750729,5.6685,176.43,176.42,2.99]
[1753989751930,5.6689,176.42,176.4,6.60451547]
[1753989752230,5.6689,176.42,176.41,2.99]
[1753989752437,8.6989,176.42,176.41,2.99]
[1753989752620,5.669,176.41,176.4,9.59451547]
[1753989752825,3.03,176.42,176.4,9.59451547]
[1753989753131,8.6988,176.42,176.41,2.99]
[1753989753320,3.03,176.42,176.4,6.60451547]
[1753989753522,5.6703,176.37,176.36,4.72480503]
[1753989753724,3.03,176.41,176.32,7.71480503]
[1753989753925,6.60451547,176.4,176.31,4.72480503]
[1753989754228,3.03,176.39,176.3,11.3293205]
[1753989754427,3.03,176.39,176.31,2.99]
[1753989755024,5.6721,176.32,176.31,2.99]
[1753989755229,3.03,176.32,176.3,9.59451547]
[1753989755926,17.94321547,176.4,176.3,6.60451547]
[1753989756129,3.03,176.39,176.3,9.59451547]
[1753989756331,3.03,176.39,176.3,5.6723]
[1753989756528,3.03,176.39,176.3,2.99]
[1753989756725,5.672,176.32,176.29,11.3293205]
[1753989756928,5.672,176.32,176.31,2.99]
[1753989757133,3.03,176.31,176.29,9.59451547]
[1753989757434,3.03,176.3,176.28,4.72480503]
[1753989757730,3.03,176.3,176.28,7.71480503]
[1753989757924,6.60451547,176.38,176.28,2.99]
[1753989757925,8.7028,176.29,176.28,2.99]
[1753989758432,3.03,176.29,176.28,2.99]
[1753989758829,8.7025,176.31,176.28,8.6631]
[1753989759229,3.03,176.31,176.28,2.99]
[1753989759526,3.03,176.29,176.25,4.72480503]
[1753989759729,3.03,176.29,176.27,9.59451547]
[1753989759926,3.03,176.29,176.27,15.26781547]
[1753989760125,3.03,176.29,176.28,2.99]
[1753989760434,5.6725,176.3,176.28,2.99]
[1753989760737,8.7025,176.3,176.28,2.99]
[1753989761235,3.03,176.29,176.28,2.99]
[1753989761532,3.03,176.37,176.28,2.99]
[1753989761924,3.03,176.37,176.27,6.60451547]
[1753989762130,8.7031,176.29,176.27,9.59451547]
[1753989762735,3.03,176.35,176.25,6.60451547]
[1753989763330,8.7035,176.28,176.25,15.26861547]
[1753989763522,3.03,176.28,176.25,9.59451547]
[1753989763722,3.03,176.33,176.23,6.60451547]
[1753989763928,3.03,176.31,176.21,11.3293205]
[1753989764128,3.03,176.31,176.21,6.60451547]
[1753989764429,3.03,176.23,176.21,6.60451547]
[1753989764632,3.03,176.23,176.22,2.99]
[1753989765329,3.03,176.25,176.22,2.99]
[1753989765526,9.63451547,176.34,176.24,2.99]
[1753989765831,3.03,176.33,176.24,2.99]
[1753989766832,3.03,176.31,176.23,6.60451547]
[1753989767030,3.03,176.31,176.22,2.99]
[1753989767535,3.03,176.31,176.2,6.60451547]
[1753989767732,3.03,176.29,176.18,9.59451547]
[1753989767933,6.60451547,176.28,176.18,9.59451547]
[1753989768134,3.03,176.27,176.18,9.59451547]
[1753989768636,5.6753,176.22,176.19,5.6759]
[1753989768828,8.7053,176.22,176.2,2.99]
[1753989769227,3.03,176.22,176.2,2.99]
[1753989769737,8.7054,176.21,176.18,6.60451547]
[1753989769929,3.03,176.21,176.19,2.99]
[1753989770127,5.6746,176.24,176.18,6.60451547]
[1753989770332,3.03,176.27,176.19,2.99]
[1753989770532,3.03,176.27,176.2,9.59451547]
[1753989770727,6.60451547,176.3,176.21,2.99]
[1753989770728,3.03,176.23,176.21,2.99]
[1753989772237,5.6751,176.22,176.21,2.99]
[1753989772640,3.03,176.23,176.22,2.99]
[1753989772838,3.03,176.29,176.22,2.99]
[1753989773043,3.03,176.29,176.22,9.59451547]
[1753989773542,3.03,176.29,176.25,2.99]
[1753989773744,3.03,176.33,176.25,2.99]
[1753989774240,3.03,176.33,176.26,6.60451547]
[1753989774640,5.6735,176.27,176.26,6.60451547]
[1753989774848,5.6735,176.27,176.26,9.59451547]
[1753989775243,8.7034,176.28,176.26,6.60451547]
[1753989775443,3.03,176.28,176.26,6.60451547]
[1753989775640,3.03,176.27,176.26,6.60451547]
[1753989775842,3.03,176.27,176.25,2.99]
[1753989776351,3.03,176.26,176.25,2.99]
[1753989776749,3.03,176.26,176.24,6.60451547]
[1753989776946,6.60451547,176.3,176.21,2.99]
[1753989777147,3.03,176.29,176.21,2.99]
[1753989777650,5.6751,176.23,176.21,2.99]
[1753989777850,8.7051,176.23,176.21,2.99]
[1753989778450,5.6751,176.22,176.21,2.99]
[1753989779255,8.7049,176.23,176.21,2.99]
[1753989779554,3.03,176.23,176.21,2.99]
[1753989779855,5.6751,176.22,176.21,2.99]
[1753989780050,8.8851,176.22,176.21,2.99]
[1753989780257,3.21,176.2,176.18,9.77451547]
[1753989780458,5.6761,176.19,176.18,9.77451547]
[1753989780652,3.21,176.27,176.19,3.17]
[1753989780850,3.21,176.27,176.18,6.60451547]
[1753989781057,5.6761,176.19,176.18,9.77451547]
[1753989782257,8.8861,176.19,176.18,9.77451547]
[1753989782452,8.8861,176.19,176.18,6.60451547]
[1753989782653,3.21,176.25,176.17,3.17]
[1753989782959,3.21,176.27,176.25,3.17]
[1753989783159,3.21,176.27,176.26,6.60451547]
[1753989783349,3.21,176.27,176.13,16.98]
[1753989783350,6.60451547,176.3,176.19,6.60451547]
[1753989783549,8.884,176.26,176.24,8.8444]
[1753989783756,3.21,176.26,176.24,3.17]
[1753989783956,3.21,176.32,176.25,9.77451547]
[1753989784163,3.21,176.32,176.15,172.68480503]
[1753989784164,3.21,176.4,176.28,6.60451547]
[1753989784462,3.21,176.37,176.28,6.60451547]
[1753989784656,6.60451547,176.38,176.28,6.60451547]
[1753989784861,3.21,176.29,176.28,6.60451547]
[1753989785059,8.8835,176.27,176.18,3.17]
[1753989785254,3.21,176.26,176.24,3.17]
[1753989785855,3.21,176.32,176.23,6.60451547]
[1753989786156,3.21,176.3,176.21,6.60451547]
[1753989786550,5.6744,176.25,176.21,6.60451547]
[1753989786755,3.21,176.32,176.24,3.17]
[1753989788156,4.65459082,176.41,176.23,6.60451547]
[1753989788362,3.21,176.37,176.29,6.60451547]
[1753989788566,3.21,176.37,176.31,6.60451547]
[1753989788764,3.21,176.33,176.31,9.77451547]
[1753989789056,3.21,176.32,176.31,9.77451547]
[1753989789254,8.8819,176.32,176.31,9.77451547]
[1753989789454,8.8819,176.32,176.31,6.60451547]
[1753989790058,8.8819,176.32,176.29,9.77451547]
[1753989790254,3.21,176.31,176.29,9.77451547]
[1753989790659,8.8823,176.31,176.29,9.77451547]
[1753989792263,8.8825,176.3,176.29,6.60451547]
[1753989793362,6.60451547,176.38,176.25,5.674]
[1753989793664,3.21,176.27,176.25,6.60451547]
[1753989793871,3.21,176.27,176.25,3.17]
[1753989794064,5.6733,176.28,176.26,3.17]
[1753989794266,3.21,176.3,176.28,3.17]
[1753989794466,5.673,176.29,176.28,3.17]
[1753989794672,3.21,176.3,176.28,3.17]
[1753989794871,3.21,176.3,176.28,9.77451547]
[1753989795072,8.8828,176.3,176.28,9.77451547]
[1753989795275,3.21,176.3,176.28,9.77451547]
[1753989796366,8.8826,176.3,176.28,9.77451547]
[1753989796571,3.21,176.3,176.28,9.77451547]
[1753989797077,3.21,176.3,176.2,50.31304878]
[1753989797078,3.21,176.3,176.23,9.77451547]
[1753989797273,3.21,176.3,176.21,6.60451547]
[1753989797473,3.21,176.3,176.25,6.60451547]
[1753989797674,3.21,176.29,176.26,3.17]
[1753989797873,8.8834,176.28,176.26,3.17]
[1753989798069,3.21,176.28,176.26,3.17]
[1753989798276,3.21,176.27,176.26,3.17]
[1753989798777,3.21,176.29,176.26,3.17]
[1753989798977,17.94611547,176.36,176.27,6.60451547]
[1753989798978,3.21,176.35,176.27,6.60451547]
[1753989799275,8.8834,176.28,176.27,6.60451547]
[1753989801280,3.21,176.37,176.28,3.17]
[1753989801982,3.21,176.35,176.27,6.60451547]
[1753989802282,5.6731,176.29,176.27,6.60451547]
[1753989802578,3.21,176.28,176.27,6.60451547]
[1753989803273,8.8827,176.3,176.27,6.60451547]